bitfinex/quotes_BTCUSD_20240927
["timestamp","ask_amount","ask_price","bid_price","bid_amount"]
[1727447221214,0.15528794,66398.0,66397.0,0.150609]
[1727447221541,0.0811,66399.0,66398.0,0.150606]
[1727447221794,0.401144,66414.0,66404.0,0.451779]
[1727447221795,0.22659808,66405.0,66404.0,0.451779]
[1727447222058,0.0767,66407.0,66406.0,0.150588]
[1727447222828,0.49119625,66407.0,66402.0,0.150596]
[1727447223065,0.15528794,66406.0,66402.0,0.150596]
[1727447223307,0.15528794,66406.0,66403.0,0.150594]
[1727447223550,0.15528794,66406.0,66380.0,0.22659808]
[1727447223801,0.26485537,66405.0,66393.0,0.150617]
[1727447224051,0.1506,66401.0,66380.0,0.22659808]
[1727447224292,0.15528794,66400.0,66386.0,0.301264]
[1727447224522,0.15528794,66400.0,66383.0,0.301281]
[1727447224523,0.30589094,66400.0,66383.0,0.301281]
[1727447224759,0.15528794,66400.0,66391.0,0.150622]
[1727447225004,0.15528794,66400.0,66395.0,0.150613]
[1727447225005,0.25920831,66396.0,66395.0,0.150613]
[1727447225236,0.41449625,66396.0,66395.0,0.150613]
[1727447225469,0.37719408,66403.0,66394.0,0.301231]
[1727447225470,0.22659808,66403.0,66394.0,0.301231]
[1727447225702,0.15528794,66402.0,66401.0,0.1506]
[1727447225951,0.15528794,66402.0,66370.0,0.384336]
[1727447226232,0.22659808,66400.0,66391.0,0.301242]
[1727447226468,0.25920831,66395.0,66392.0,0.30124]
[1727447226773,0.25920831,66395.0,66394.0,0.150616]
[1727447227281,0.25920831,66395.0,66373.0,0.22659808]
[1727447227282,0.268,66394.0,66373.0,0.22659808]
[1727447227534,0.15528794,66393.0,66389.0,0.150626]
[1727447227802,0.0787,66394.0,66381.0,0.001]
[1727447228061,0.0787,66394.0,66392.0,0.150619]
[1727447228296,0.22659808,66393.0,66381.0,0.001]
[1727447228551,0.0787,66394.0,66392.0,0.15062]
[1727447228779,0.006,66402.0,66400.0,0.1506]
[1727447228780,0.013,66402.0,66400.0,0.1506]
[1727447229034,0.006,66402.0,66381.0,0.001]
[1727447229272,0.006,66402.0,66401.0,0.1506]
[1727447229516,0.006,66402.0,66400.0,0.150602]
[1727447229758,0.006,66402.0,66401.0,0.1506]
[1727447230233,0.22659808,66405.0,66402.0,0.150596]
[1727447230499,0.22659808,66405.0,66400.0,0.150601]
[1727447230739,0.22659808,66405.0,66395.0,0.150611]
[1727447230740,0.38188602,66405.0,66395.0,0.150611]
[1727447230972,0.38188602,66405.0,66397.0,0.150608]
[1727447231206,0.38188602,66405.0,66395.0,0.301226]
[1727447231445,0.38188602,66405.0,66401.0,0.002]
[1727447231446,0.15528794,66405.0,66401.0,0.002]
[1727447231706,0.25920831,66403.0,66401.0,0.002]
[1727447231947,0.25920831,66403.0,66394.0,0.301231]
[1727447232175,0.25920831,66403.0,66395.0,0.301223]
[1727447232429,0.25920831,66403.0,66397.0,0.150608]
[1727447232661,0.000829,66407.0,66400.0,0.003]
[1727447232662,0.1506,66401.0,66400.0,0.003]
[1727447232908,0.0762,66397.0,66388.0,0.150628]
[1727447233146,0.23148794,66397.0,66394.0,0.002]
[1727447233385,0.150613,66395.0,66394.0,0.002]
[1727447233640,0.150613,66395.0,66389.0,0.150626]
[1727447233641,0.15528794,66395.0,66389.0,0.150626]
[1727447233880,0.15528794,66395.0,66385.0,0.301269]
[1727447233881,0.25920831,66392.0,66380.0,0.22659808]
[1727447234118,0.25920831,66392.0,66373.0,0.22659808]
[1727447234119,0.25920831,66392.0,66386.0,0.150633]
[1727447234365,0.25920831,66392.0,66384.0,0.150637]
[1727447234366,0.40983031,66392.0,66384.0,0.150637]
[1727447234622,0.301237,66393.0,66383.0,0.301278]
[1727447234887,0.150625,66390.0,66383.0,0.150639]
[1727447235116,0.15528794,66391.0,66383.0,0.150639]
[1727447235351,0.15528794,66391.0,66385.0,0.150636]
[1727447235352,0.30591094,66391.0,66385.0,0.150636]
[1727447235589,0.30591094,66391.0,66381.0,0.301286]
[1727447235822,0.25920831,66387.0,66384.0,0.150637]
[1727447236059,0.25920831,66387.0,66386.0,0.150634]
[1727447237299,0.26020831,66387.0,66386.0,0.01]
[1727447237764,0.26020831,66387.0,66386.0,0.160634]
[1727447237993,0.26020831,66387.0,66386.0,0.168634]
[1727447237994,0.002,66387.0,66386.0,0.168634]
[1727447238730,0.002,66387.0,66386.0,0.158634]
[1727447238731,0.001,66387.0,66386.0,0.158634]
[1727447238972,0.001,66387.0,66386.0,0.159634]
[1727447239238,0.22659808,66393.0,66382.0,0.301282]
[1727447239498,0.22659808,66393.0,66392.0,0.15062]
[1727447239991,0.22659808,66393.0,66387.0,0.30126]
[1727447239992,0.150603,66400.0,66387.0,0.30126]
[1727447240204,0.150603,66400.0,66396.0,0.150611]
[1727447240446,0.1506,66401.0,66392.0,0.30124]
[1727447240684,0.22659808,66402.0,66392.0,0.30124]
[1727447240685,0.38188602,66402.0,66392.0,0.30124]
[1727447240934,0.000829,66393.0,66392.0,0.45186]
[1727447242008,0.000829,66393.0,66392.0,0.45486]
[1727447242742,0.000829,66393.0,66392.0,0.61014794]
[1727447242991,0.000829,66393.0,66392.0,0.61114794]
[1727447243483,0.000829,66393.0,66392.0,0.61014794]
[1727447244195,0.000829,66393.0,66392.0,0.70714794]
[1727447244441,0.001829,66393.0,66392.0,0.71714794]
[1727447244949,0.002829,66393.0,66392.0,0.73114794]
[1727447245421,0.002829,66393.0,66392.0,0.47586]
[1727447245955,0.002829,66393.0,66392.0,0.63114794]
[1727447246201,0.002829,66393.0,66392.0,0.73114794]
[1727447246437,0.000829,66407.0,66392.0,0.73114794]
[1727447246438,0.000829,66407.0,66406.0,0.150588]
[1727447248834,0.000829,66407.0,66406.0,0.156588]
[1727447249063,0.000829,66407.0,66406.0,0.170588]
[1727447250216,0.000829,66407.0,66406.0,0.156588]
[1727447250449,0.000829,66407.0,66406.0,0.160588]
[1727447251164,0.000829,66407.0,66406.0,0.31587594]
[1727447252398,0.000829,66407.0,66406.0,0.41587594]
[1727447253104,0.000829,66407.0,66406.0,0.40587594]
[1727447253356,0.000829,66407.0,66406.0,2.73570794]
[1727447253590,0.000829,66407.0,66406.0,1.59633546]
[1727447253855,0.22659808,66418.0,66417.0,0.150563]
[1727447254120,0.22659808,66418.0,66417.0,0.30585094]
[1727447254650,0.000828,66425.0,66424.0,0.150547]
[1727447256155,0.000828,66425.0,66424.0,0.157547]
[1727447256391,0.000828,66425.0,66424.0,0.167547]
[1727447256627,0.000828,66425.0,66424.0,0.150547]
[1727447256869,0.000828,66425.0,66424.0,0.158547]
[1727447258130,0.000828,66425.0,66424.0,0.170547]
[1727447258356,0.000828,66425.0,66424.0,0.250547]
[1727447258603,0.000828,66425.0,66424.0,0.263547]
[1727447258835,0.000828,66425.0,66424.0,0.274547]
[1727447259540,0.000828,66425.0,66424.0,0.250547]
[1727447259771,0.000828,66425.0,66424.0,0.278547]
[1727447260258,0.077228,66425.0,66424.0,0.164547]
[1727447261420,0.077228,66425.0,66424.0,0.150547]
[1727447261644,0.077228,66425.0,66424.0,0.164547]
[1727447261883,0.077228,66425.0,66424.0,0.150547]
[1727447262116,0.077228,66425.0,66424.0,0.170547]
[1727447262563,0.23251594,66425.0,66424.0,0.02]
[1727447262836,0.23251594,66425.0,66424.0,0.006]
[1727447263080,0.23251594,66425.0,66424.0,0.01]
[1727447263553,0.23251594,66425.0,66424.0,0.006]
[1727447263794,0.38506094,66425.0,66424.0,0.006]
[1727447264031,0.41106094,66425.0,66424.0,0.007]
[1727447264294,0.41106094,66425.0,66389.0,0.22659808]
[1727447264295,0.0779,66413.0,66389.0,0.22659808]
[1727447264545,0.0779,66413.0,66407.0,0.22659808]
[1727447264546,0.150581,66410.0,66407.0,0.22659808]
[1727447264783,0.150581,66410.0,66404.0,0.150592]
[1727447264784,0.15528794,66409.0,66400.0,0.3012]
[1727447265084,0.15528794,66409.0,66389.0,0.22659808]
[1727447265085,0.25920831,66408.0,66389.0,0.22659808]
[1727447265329,0.15528794,66408.0,66404.0,0.301186]
[1727447265566,0.0779,66413.0,66412.0,0.150575]
[1727447266784,0.1913,66421.0,66411.0,0.301154]
[1727447267036,0.22659808,66416.0,66415.0,0.150568]
[1727447267284,0.0755,66419.0,66415.0,0.150566]
[1727447267545,0.23078794,66419.0,66415.0,0.150567]
[1727447267792,0.23078794,66419.0,66416.0,0.150565]
[1727447268033,0.150573,66413.0,66406.0,0.301173]
[1727447268275,0.150573,66413.0,66398.0,0.22659808]
[1727447268276,0.002,66416.0,66405.0,0.22659808]
[1727447268518,0.15528794,66415.0,66398.0,0.22659808]
[1727447268833,0.15528794,66415.0,66411.0,0.150576]
[1727447269068,0.15528794,66415.0,66410.0,0.301156]
[1727447269332,0.15528794,66415.0,66411.0,0.301152]
[1727447269836,0.15528794,66415.0,66414.0,0.15057]
[1727447270086,1.15528794,66415.0,66414.0,0.15057]
[1727447270361,1.15528794,66415.0,66414.0,0.11557]
[1727447270362,1.001,66415.0,66414.0,0.11557]
[1727447270817,1.0,66415.0,66414.0,0.11557]
[1727447271788,1.001,66415.0,66414.0,0.11557]
[1727447272269,1.0,66415.0,66414.0,0.11557]
[1727447272602,1.001,66415.0,66414.0,0.11557]
[1727447273356,1.30685694,66415.0,66402.0,0.301193]
[1727447273603,0.30585894,66414.0,66410.0,0.150579]
[1727447273839,0.15528794,66414.0,66408.0,0.301166]
[1727447274078,0.15528794,66414.0,66412.0,0.150573]
[1727447274319,0.15528794,66414.0,66413.0,0.150572]
[1727447274559,1.001,66415.0,66414.0,0.15057]
[1727447274560,1.0,66415.0,66414.0,0.15057]
[1727447275499,1.001,66415.0,66414.0,0.15057]
[1727447276457,1.001,66415.0,66391.0,0.22659808]
[1727447276458,1.26393794,66415.0,66391.0,0.22659808]
[1727447276715,1.26393794,66415.0,66400.0,0.22659808]
[1727447276716,0.17828794,66414.0,66400.0,0.22659808]
[1727447276956,0.15528794,66414.0,66393.0,0.22659808]
[1727447277199,0.38188602,66414.0,66413.0,0.150572]
[1727447277440,0.38188602,66414.0,66412.0,0.301149]
[1727447277441,0.22659808,66414.0,66412.0,0.301149]
[1727447277679,1.001,66415.0,66414.0,0.15057]
[1727447277919,1.0,66415.0,66414.0,0.15057]
[1727447278164,1.001,66415.0,66414.0,0.15057]
[1727447278404,1.0,66415.0,66414.0,0.15057]
[1727447278882,1.001,66415.0,66414.0,0.15557]
[1727447279807,1.0,66415.0,66414.0,0.15557]
[1727447280316,1.0,66415.0,66414.0,0.16057]
[1727447284187,1.0,66415.0,66414.0,0.01]
[1727447284434,1.38135594,66415.0,66414.0,0.01]
[1727447284668,1.40435594,66415.0,66414.0,0.01]
[1727447285134,1.40435594,66415.0,66414.0,0.005]
[1727447285393,1.0755,66415.0,66414.0,0.005]
[1727447285663,1.0755,66415.0,66414.0,0.001]
[1727447285664,1.23678794,66415.0,66414.0,0.001]
[1727447285931,1.24278794,66415.0,66414.0,0.15157]
[1727447286169,1.012,66415.0,66414.0,0.15157]
[1727447287914,1.006,66415.0,66414.0,0.15057]
[1727447288155,1.0,66415.0,66414.0,0.15057]
[1727447288396,1.0,66415.0,66414.0,0.25057]
[1727447288632,1.0,66415.0,66414.0,0.40585794]
[1727447289148,1.0,66415.0,66414.0,0.40685794]
[1727447289625,1.0,66415.0,66414.0,0.40585794]
[1727447290362,1.0,66415.0,66414.0,0.25057]
[1727447291843,1.0,66415.0,66414.0,0.15057]
[1727447295690,1.0,66415.0,66414.0,0.25057]
[1727447297828,1.0,66415.0,66414.0,0.40585794]
[1727447298797,1.001,66415.0,66414.0,0.41985794]
[1727447299520,1.0,66415.0,66414.0,0.40585794]
[1727447299763,1.001,66415.0,66414.0,0.41985794]
[1727447300010,1.002,66415.0,66414.0,0.43385794]
[1727447300732,1.002,66415.0,66414.0,0.43885794]
[1727447300979,0.85027,66415.0,66414.0,0.50695794]
[1727447301212,0.79098,66415.0,66414.0,0.52095794]
[1727447301898,0.700545,66415.0,66414.0,0.53095794]
[1727447302140,0.699545,66415.0,66414.0,0.55695794]
[1727447302848,0.699545,66415.0,66414.0,1.09707394]
[1727447303086,0.547825,66415.0,66414.0,1.06907394]
[1727447303321,0.457393,66415.0,66414.0,1.06907394]
[1727447303569,0.457393,66415.0,66414.0,1.17655963]
[1727447303570,0.257393,66415.0,66414.0,1.17655963]
[1727447303803,0.000828,66424.0,66423.0,0.26755]
[1727447304035,0.000828,66424.0,66423.0,3.64848139]
[1727447304270,0.000828,66424.0,66423.0,1.75300994]
[1727447304963,1e-06,66425.0,66424.0,0.267547]
[1727447305198,1e-06,66425.0,66424.0,0.42283494]
[1727447305434,1e-06,66425.0,66424.0,0.81283994]
[1727447306348,1e-06,66425.0,66424.0,0.82683994]
[1727447306578,1e-06,66425.0,66424.0,0.60153594]
[1727447306853,1e-06,66425.0,66424.0,0.58753594]
[1727447307093,1e-06,66425.0,66424.0,0.60353594]
[1727447307607,1e-06,66425.0,66424.0,0.58953594]
[1727447307873,1e-06,66425.0,66424.0,0.60353594]
[1727447308124,0.0762,66455.0,66434.0,0.257525]
[1727447308349,0.22742608,66435.0,66434.0,1.14348794]
[1727447308579,0.22742608,66435.0,66434.0,0.56051094]
[1727447308822,0.000828,66435.0,66434.0,0.56051094]
[1727447309317,0.000828,66435.0,66434.0,0.57451094]
[1727447309548,0.000828,66435.0,66434.0,0.74692505]
[1727447309779,0.000828,66435.0,66434.0,0.74892505]
[1727447310005,0.000828,66435.0,66434.0,0.76292505]
[1727447310466,0.000828,66435.0,66434.0,0.76092505]
[1727447310760,0.000828,66435.0,66434.0,0.61122705]
[1727447311261,0.000828,66435.0,66434.0,0.43381294]
[1727447312449,0.000828,66435.0,66434.0,0.178525]
[1727447312683,0.190928,66435.0,66434.0,0.178525]
[1727447316322,0.213928,66435.0,66434.0,0.178525]
[1727447316559,0.190928,66435.0,66434.0,0.178525]
[1727447317017,0.190928,66435.0,66434.0,0.164525]
[1727447317482,0.190928,66435.0,66434.0,0.159525]
[1727447317715,0.190928,66435.0,66434.0,0.169525]
[1727447320986,0.213928,66435.0,66434.0,0.019]
[1727447321457,0.290928,66435.0,66434.0,0.019]
[1727447321937,0.61863005,66435.0,66434.0,0.019]
[1727447322173,0.61863005,66435.0,66430.0,0.301065]
[1727447322174,0.023,66434.0,66430.0,0.301065]
[1727447322425,0.023,66434.0,66432.0,0.150529]
[1727447322426,0.17828794,66434.0,66432.0,0.150529]
[1727447322677,0.17828794,66434.0,66433.0,0.150527]
[1727447323398,0.267928,66435.0,66434.0,0.150525]
[1727447324343,0.190928,66435.0,66434.0,0.150525]
[1727447324590,0.000828,66435.0,66434.0,0.150525]
[1727447325290,0.000828,66435.0,66434.0,0.159525]
[1727447326289,0.185928,66435.0,66434.0,0.159525]
[1727447326767,0.208928,66435.0,66434.0,0.159525]
[1727447326995,0.208928,66435.0,66434.0,0.009]
[1727447326996,0.44571594,66435.0,66434.0,0.009]
[1727447327233,0.44671594,66435.0,66434.0,0.166525]
[1727447327490,0.268428,66435.0,66434.0,0.166525]
[1727447328421,0.291428,66435.0,66434.0,0.166525]
[1727447328940,0.44671594,66435.0,66434.0,0.016]
[1727447329177,0.44671594,66435.0,66434.0,0.166525]
[1727447329410,0.44671594,66435.0,66434.0,0.016]
[1727447329938,0.44671594,66435.0,66434.0,0.168181]
[1727447330165,0.268428,66435.0,66434.0,0.168181]
[1727447330432,0.268428,66435.0,66434.0,0.158181]
[1727447331657,0.268428,66435.0,66434.0,0.14993405]
[1727447334116,0.268428,66435.0,66434.0,0.30522199]
[1727447334117,0.001828,66435.0,66434.0,0.30522199]
[1727447334351,0.001828,66435.0,66434.0,0.30722199]
[1727447334590,0.001828,66435.0,66434.0,0.40522199]
[1727447335300,0.002828,66435.0,66434.0,0.25093405]
[1727447335553,0.001828,66435.0,66434.0,0.40622199]
[1727447336525,0.001828,66435.0,66434.0,0.40522199]
[1727447336526,0.000828,66435.0,66434.0,0.40522199]
[1727447337001,0.002828,66435.0,66434.0,0.42422199]
[1727447337499,0.001828,66435.0,66434.0,0.41622199]
[1727447337737,0.001828,66435.0,66434.0,0.41822199]
[1727447337967,0.002828,66435.0,66434.0,0.43122199]
[1727447338427,0.002828,66435.0,66434.0,0.42022199]
[1727447338428,0.001828,66435.0,66434.0,0.42022199]
[1727447338650,0.001828,66435.0,66434.0,0.42522199]
[1727447339671,0.001828,66435.0,66434.0,3.03672799]
[1727447339918,0.001828,66435.0,66434.0,2.67672799]
[1727447340154,0.001828,66435.0,66434.0,2.68772799]
[1727447340155,0.002828,66435.0,66434.0,2.68772799]
[1727447340400,0.002828,66435.0,66434.0,1.24919199]
[1727447340642,0.002828,66435.0,66434.0,1.05066499]
[1727447340872,0.002828,66435.0,66434.0,0.54733799]
[1727447341105,0.002828,66435.0,66434.0,0.54533799]
[1727447341339,0.001828,66435.0,66434.0,0.53433799]
[1727447341590,0.000828,66435.0,66434.0,0.52333799]
[1727447341820,0.001828,66435.0,66434.0,0.54833799]
[1727447342056,0.001828,66435.0,66434.0,0.54633799]
[1727447342297,0.00517107,66444.0,66443.0,0.150504]
[1727447342555,0.10647107,66444.0,66443.0,0.150504]
[1727447343036,0.10647107,66444.0,66434.0,0.012656]
[1727447343037,0.023,66441.0,66436.0,0.150519]
[1727447343302,0.023,66441.0,66434.0,0.302702]
[1727447343303,0.023,66439.0,66437.0,0.150517]
[1727447343555,0.023,66439.0,66438.0,0.150516]
[1727447343794,0.34238794,66440.0,66439.0,0.150514]
[1727447343795,0.1871,66440.0,66439.0,0.150514]
[1727447344771,0.2101,66440.0,66439.0,0.150514]
[1727447345508,0.38263467,66440.0,66439.0,0.150514]
[1727447345743,0.38263467,66440.0,66437.0,0.150517]
[1727447345744,0.023,66439.0,66437.0,0.150517]
[1727447345981,0.023,66439.0,66436.0,0.30104]
[1727447345982,0.173523,66435.0,66434.0,0.001656]
[1727447346236,0.173523,66435.0,66431.0,0.150532]
[1727447346237,0.2196,66432.0,66431.0,0.150532]
[1727447347194,0.2196,66432.0,66429.0,0.301072]
[1727447347195,0.2196,66432.0,66430.0,0.150532]
[1727447347427,0.2196,66432.0,66428.0,0.150537]
[1727447347656,0.2196,66432.0,66430.0,0.150534]
[1727447347894,0.2196,66432.0,66431.0,0.152532]
[1727447348407,0.2196,66432.0,66431.0,0.003]
[1727447348662,0.2196,66432.0,66431.0,0.150532]
[1727447348925,0.1966,66432.0,66431.0,0.150532]
[1727447349935,0.2196,66432.0,66431.0,0.150532]
[1727447350702,0.2196,66432.0,66431.0,0.153532]
[1727447351192,0.2196,66432.0,66431.0,0.155532]
[1727447353565,0.1966,66432.0,66431.0,0.155532]
[1727447354741,0.00517107,66444.0,66432.0,0.301059]
[1727447354742,0.2659,66442.0,66432.0,0.301059]
[1727447354970,0.2659,66442.0,66441.0,0.150509]
[1727447356138,0.2929,66442.0,66441.0,0.150509]
[1727447356373,0.2929,66442.0,66440.0,0.150511]
[1727447356374,0.023,66441.0,66440.0,0.150511]
[1727447357350,0.023,66441.0,66432.0,0.301057]
[1727447357594,0.023,66441.0,66416.0,0.1]
[1727447357595,0.28185966,66438.0,66435.0,0.150522]
[1727447357822,0.28185966,66438.0,66436.0,0.150519]
[1727447358057,0.28185966,66438.0,66409.0,0.30116]
[1727447358058,0.150529,66432.0,66409.0,0.30116]
[1727447358289,0.150529,66432.0,66423.0,0.301096]
[1727447358290,0.023,66432.0,66423.0,0.301096]
[1727447358518,0.173529,66432.0,66423.0,0.301096]
[1727447358786,0.17828794,66432.0,66428.0,0.150538]
[1727447359027,0.17828794,66432.0,66426.0,0.60217]
[1727447359265,0.17828794,66432.0,66427.0,0.15054]
[1727447359493,0.32881694,66432.0,66427.0,0.150541]
[1727447359719,0.59711694,66432.0,66427.0,0.150541]
[1727447359954,0.59711694,66432.0,66426.0,0.150542]
[1727447360194,0.59711694,66432.0,66426.0,0.150541]
[1727447360455,0.59711694,66432.0,66425.0,0.001656]
[1727447360456,0.150543,66426.0,66425.0,0.001656]
[1727447360709,0.44638794,66426.0,66425.0,0.001656]
[1727447361871,0.45038794,66426.0,66425.0,0.153201]
[1727447362111,0.2721,66426.0,66425.0,0.153201]
[1727447362370,0.2681,66426.0,66425.0,0.152201]
[1727447362652,0.2721,66426.0,66425.0,0.153201]
[1727447362903,0.2731,66426.0,66425.0,0.154201]
[1727447363143,0.42738794,66426.0,66425.0,0.002656]
[1727447363375,0.60193094,66426.0,66425.0,0.002656]
[1727447363833,0.59793094,66426.0,66425.0,0.001656]
[1727447364300,0.60093094,66426.0,66425.0,0.002656]
[1727447365286,0.59793094,66426.0,66425.0,0.001656]
[1727447365551,0.45038794,66426.0,66425.0,0.001656]
[1727447366089,0.2951,66426.0,66425.0,0.001656]
[1727447366337,0.2721,66426.0,66425.0,0.152201]
[1727447367605,0.2951,66426.0,66425.0,0.152201]
[1727447367857,0.2951,66426.0,66425.0,0.001656]
[1727447368556,0.2951,66426.0,66414.0,0.020291]
[1727447368557,0.005,66425.0,66414.0,0.020291]
[1727447368786,0.450868,66415.0,66414.0,0.020291]
[1727447369026,0.8650156,66415.0,66414.0,0.020291]
[1727447370452,0.8660156,66415.0,66414.0,0.021291]
[1727447372828,0.8760156,66415.0,66414.0,0.022291]
[1727447373070,0.7254476,66415.0,66397.0,0.301217]
[1727447373298,0.2691,66402.0,66399.0,0.22659808]
[1727447373537,0.2691,66402.0,66397.0,0.301217]
[1727447373538,0.023,66401.0,66398.0,0.22659808]
[1727447373780,0.023,66401.0,66398.0,0.150605]
[1727447374013,0.023,66401.0,66400.0,0.150602]
[1727447374956,0.023,66401.0,66397.0,0.301217]
[1727447375185,0.023,66401.0,66400.0,0.151602]
[1727447375898,0.023,66401.0,66400.0,0.150602]
[1727447376884,0.023,66401.0,66400.0,0.151602]
[1727447378768,0.023,66401.0,66400.0,0.15326]
[1727447379750,0.30539808,66408.0,66400.0,0.15326]
[1727447379751,0.30539808,66408.0,66400.0,0.002658]
[1727447380217,0.0788,66408.0,66407.0,0.150586]
[1727447380471,0.22659808,66412.0,66411.0,0.150577]
[1727447380925,0.000829,66415.0,66414.0,0.15057]
[1727447382406,0.007829,66415.0,66414.0,0.15157]
[1727447382890,0.007829,66415.0,66414.0,0.15657]
[1727447383622,0.000829,66415.0,66414.0,0.15057]
[1727447383909,0.000829,66415.0,66414.0,0.15857]
[1727447384151,0.001829,66415.0,66414.0,0.16657]
[1727447385675,0.100029,66415.0,66414.0,0.16657]
[1727447386881,0.100029,66415.0,66414.0,0.016]
[1727447386882,0.48191502,66415.0,66414.0,0.016]
[1727447387123,0.40588494,66415.0,66414.0,0.016]
[1727447387908,0.40588494,66415.0,66414.0,0.008]
[1727447387909,0.40488494,66415.0,66414.0,0.008]
[1727447388141,0.41088494,66415.0,66414.0,0.009]
[1727447389163,0.41088494,66415.0,66414.0,0.001]
[1727447389435,0.41688494,66415.0,66414.0,0.001]
[1727447389678,0.24331694,66415.0,66414.0,0.001]
[1727447389927,0.088029,66415.0,66414.0,0.001]
[1727447390227,0.24331694,66415.0,66414.0,0.001]
[1727447390421,0.39388494,66415.0,66414.0,0.001]
[1727447390662,0.24331694,66415.0,66414.0,0.001]
[1727447391151,0.111029,66415.0,66414.0,0.001]
[1727447391375,0.111029,66415.0,66414.0,0.15157]
[1727447391376,0.088029,66415.0,66414.0,0.15157]
[1727447391614,0.012829,66415.0,66414.0,0.153228]
[1727447392090,0.176029,66416.0,66415.0,0.150568]
[1727447392332,0.176029,66416.0,66414.0,0.002658]
[1727447392333,0.150568,66415.0,66414.0,0.002658]
[1727447392573,0.30585594,66415.0,66414.0,0.002658]
[1727447392817,0.15528794,66415.0,66414.0,0.002658]
[1727447393057,0.15528794,66415.0,66414.0,0.001658]
[1727447393058,0.40815594,66415.0,66414.0,0.001658]
[1727447394263,0.40815594,66415.0,66400.0,0.22825608]
[1727447394264,0.451749,66409.0,66400.0,0.001658]
[1727447394496,0.023,66403.0,66400.0,0.001658]
[1727447394969,0.023,66407.0,66400.0,0.001658]
[1727447395200,0.023,66405.0,66400.0,0.001658]
[1727447395502,0.485172,66408.0,66400.0,0.001658]
[1727447395503,0.023,66403.0,66400.0,0.001658]
[1727447395734,0.023,66404.0,66401.0,0.3012]
[1727447395979,0.30113,66417.0,66401.0,0.3012]
[1727447395980,0.023,66407.0,66406.0,0.150588]
[1727447396211,0.0793,66415.0,66407.0,0.150586]
[1727447396212,0.023,66408.0,66407.0,0.150586]
[1727447396444,0.023,66408.0,66401.0,0.301196]
[1727447396445,0.15528794,66414.0,66401.0,0.301196]
[1727447396687,0.15528794,66414.0,66400.0,0.007658]
[1727447396688,0.22659808,66412.0,66405.0,0.150589]
[1727447396913,0.22659808,66412.0,66405.0,0.301179]
[1727447397139,0.15528794,66414.0,66409.0,0.15058]
[1727447397591,0.023,66413.0,66408.0,0.301167]
[1727447397824,0.15528794,66414.0,66410.0,0.301156]
[1727447397825,0.023,66414.0,66410.0,0.301156]
[1727447398054,0.023,66414.0,66412.0,0.150574]
[1727447398308,0.023,66414.0,66413.0,0.150572]
[1727447398548,0.023,66414.0,66411.0,0.301154]
[1727447398549,0.023,66414.0,66411.0,0.150576]
[1727447398780,0.023,66414.0,66413.0,0.150572]
[1727447399253,0.023,66414.0,66410.0,0.451733]
[1727447399480,0.023,66412.0,66409.0,0.15058]
[1727447399720,0.023,66412.0,66410.0,0.150578]
[1727447400180,0.023,66412.0,66408.0,0.301167]
[1727447400435,0.023,66412.0,66408.0,0.150582]
[1727447400677,0.023,66412.0,66403.0,0.1]
[1727447400678,0.0793,66415.0,66405.0,0.301178]
[1727447400929,0.22659808,66411.0,66410.0,0.150579]
[1727447401170,0.22659808,66411.0,66403.0,0.1782]
[1727447401171,0.003,66412.0,66411.0,0.150577]
[1727447401647,0.15528794,66425.0,66420.0,0.150556]
[1727447401889,0.15528794,66425.0,66418.0,0.301119]
[1727447402138,0.023,66424.0,66420.0,0.150555]
[1727447402378,0.023,66422.0,66416.0,0.30113]
[1727447402618,0.41179808,66426.0,66409.0,0.30116]
[1727447402619,0.023,66420.0,66409.0,0.30116]
[1727447402854,0.023,66420.0,66403.0,0.1]
[1727447402855,0.023,66418.0,66405.0,0.22659808]
[1727447403132,0.2777,66419.0,66409.0,0.30116]
[1727447403133,0.023,66416.0,66409.0,0.30116]
[1727447403366,0.023,66414.0,66412.0,0.150573]
[1727447403605,0.2777,66419.0,66412.0,0.150575]
[1727447403606,0.17828794,66413.0,66412.0,0.150575]
[1727447403840,0.023,66413.0,66412.0,0.150575]
[1727447404092,0.2777,66419.0,66417.0,0.150563]
[1727447404093,0.023,66418.0,66417.0,0.150563]
[1727447404337,0.1978,66419.0,66418.0,0.150561]
[1727447404577,0.1978,66419.0,66412.0,0.30115]
[1727447404578,0.1952,66430.0,66419.0,0.301114]
[1727447404862,0.1952,66430.0,66429.0,0.150536]
[1727447405101,0.22659808,66434.0,66433.0,0.150527]
[1727447405573,0.22659808,66434.0,66430.0,0.301064]
[1727447405574,0.083,66435.0,66434.0,0.150525]
[1727447406296,0.106,66435.0,66434.0,0.150525]
[1727447406781,0.26128794,66435.0,66434.0,0.150525]
[1727447407022,0.1803,66438.0,66437.0,0.150518]
[1727447407521,0.000828,66441.0,66440.0,0.150511]
[1727447407775,0.000828,66441.0,66440.0,0.250511]
[1727447408020,0.000828,66441.0,66440.0,0.50937066]
[1727447408283,0.000828,66441.0,66440.0,0.250511]
[1727447408520,0.000828,66441.0,66440.0,0.150511]
[1727447408768,0.000828,66441.0,66440.0,0.153511]
[1727447409332,0.000828,66441.0,66440.0,0.15652103]
[1727447409563,0.000828,66441.0,66440.0,0.153511]
[1727447410322,0.000828,66441.0,66440.0,0.15352092]
[1727447410888,0.000828,66441.0,66440.0,0.15552092]
[1727447410893,0.000828,66441.0,66440.0,0.25552092]
[1727447411170,0.000828,66441.0,66440.0,0.25352092]
[1727447411453,0.000828,66441.0,66440.0,0.25652092]
[1727447412000,0.000828,66441.0,66440.0,0.40579894]
[1727447412255,0.000828,66441.0,66440.0,0.41979894]
[1727447412768,0.00517107,66444.0,66443.0,0.150504]